Workbook

Sheet SPlanar TH
B1: Version | C1: = | D1: 0.4
B3: Driver
B4: Frame Width | C4: = | D4: 46 | E4: cm | F4: =D4/2.54 -> 18.11023622 | G4: in | J4: Plot
B5: Mounting Width | C5: = | D5: 42.2 | E5: cm | F5: =D5/2.54 -> 16.61417323 | G5: in | I5: x | J5: Advanced Centerline
B6: Mounting Depth | C6: = | D6: 24.8 | E6: cm | F6: 9.763779528 | G6: in | I6: x | J6: Sample points
B7: Magnet Width | C7: = | D7: 15 | E7: cm | F7: 5.905511811 | G7: in | I7: x | J7: Driver
B8: Magnet Height | C8: = | D8: 10 | E8: cm | F8: 3.937007874 | G8: in
B10: Horn Parameters | J10: Plot
B11: S1 | C11: = | D11: =Path!D7 -> 1006.72 | E11: cm^2 | F11: =D11/2.54^2 -> 156.0419121 | G11: in^2 | I11: x | J11: Panel A
B12: S2 | C12: = | D12: =Path!D8 -> 1006.720809 | E12: cm^2 | F12: =D12/2.54^2 -> 156.0420374 | G12: in^2 | I12: x | J12: Panel B
B13: S3 | C13: = | D13: =Path!D9 -> 2495.520527 | E13: cm^2 | F13: =D13/2.54^2 -> 386.8064552 | G13: in^2 | I13: x | J13: Panel C
I14: x | J14: Panel D
B15: S5 | C15: = | D15: =Path!D11 -> 2917.2 | E15: cm^2 | F15: =D15/2.54^2 -> 452.1669043 | G15: in^2 | I15: x | J15: Panel E
B16: S6 | C16: = | D16: =Path!D12 -> 2917.2 | E16: cm^2 | F16: =D16/2.54^2 -> 452.1669043 | G16: in^2 | I16: x | J16: Panel F (baffle)
B17: L12 | C17: = | D17: =Path!G8 -> 120.6491215 | E17: cm | F17: =D17/2.54 -> 47.49965412 | G17: in | I17: x | J17: Panel G
B18: L23 | C18: = | D18: =Path!G9 -> 165.9132429 | E18: cm | F18: =D18/2.54 -> 65.32017438 | G18: in | I18: x | J18: Panel H
B19: L45 | C19: = | D19: =Path!G12 -> 78.9 | E19: cm | F19: =D19/2.54 -> 31.06299213 | G19: in | I19: x | J19: Panel I
B21: d (external) | C21: = | D21: 91.5 | E21: cm | F21: =D21/2.54 -> 36.02362205 | G21: in
B22: h (external) | C22: = | D22: 61 | E22: cm | F22: =D22/2.54 -> 24.01574803 | G22: in
B23: w (external) | C23: = | D23: 143.5 | E23: cm | F23: =D23/2.54 -> 56.49606299 | G23: in
B25: w (internal) | C25: = | D25: =D23-2*D28 -> 139.7 | E25: cm | F25: =D25/2.54 -> 55 | G25: in
B26: L (actual) | C26: = | D26: =Path!N153 -> 0 | E26: cm | F26: 0 | G26: in
B28: p | C28: = | D28: 1.9 | E28: cm | F28: =D28/2.54 -> 0.7480314961 | G28: in | M28: =ABS(I34)+ABS(I41)+ABS(I43)+ABS(I44)+ABS(I45) -> 0.001592803763
B30: Vol. (net) | C30: = | D30: =D31-K49 -> 654.402245 | E30: l. | H30: =(D30*1000/2.54^3)/1728 -> 23.10999718 | I30: cu.ft.
B31: Vol. (gross) | C31: = | D31: =(D21*D22*D23)/10^3 -> 800.94525 | E31: l. | H31: =(D31*1000/2.54^3)/1728 -> 28.28511457 | I31: cu.ft.
B32: Internal Width | C32: = | D32: =D22-2*E39 -> 57.2 | E32: cm
B34: Expansion 1 | C34: = | H34: 4.491892069 | I34: =Path!T81 -> 6.070383733e-07
B36: Panels | D36: x (cm) | E36: p (cm) | H36: y (cm) | I36: Err | J36: # | K36: v | L36: Panel
B37: =J11 -> Panel A | D37: =D22-2*D28 -> 57.2 | E37: =D28 -> 1.9 | H37: =Panels!K10 -> 89.6 | J37: 2 | K37: =H37*D37*D28*J37/10^3 -> 19.475456 | L37: (sides)
B38: Panel B | D38: =D37 -> 57.2 | E38: =D28 -> 1.9 | H38: 8.8 | J38: 1 | K38: =D38*H38*$D$49*J38/10^3 -> 0.956384 | L38: (center)
B39: Panel C | D39: =Panels!K28 -> 143.5 | E39: =D28 -> 1.9 | H39: =Panels!K29 -> 91.5 | J39: 2 | K39: 49.89495 | L39: (top, bottom)
B40: Panel D | D40: =D38 -> 57.2 | E40: =D28 -> 1.9 | H40: =D39 -> 143.5 | J40: 1 | K40: 15.59558 | L40: (back)
B41: Panel E | D41: =D38 -> 57.2 | E41: =D28 -> 1.9 | H41: 20.57975458 | I41: =Path!T57 -> -0.000808661975 | J41: 2 | K41: 4.473215456 | L41: (front)
B42: Panel F (baffle) | D42: =D38 -> 57.2 | E42: =D28 -> 1.9 | H42: 54.8 | J42: 1 | K42: 5.955664 | L42: 1st inside
B43: Panel G | D43: =D38 -> 57.2 | E43: =D28 -> 1.9 | H43: 78.9 | I43: =Path!T48 -> 4.547473509e-13 | J43: 2 | K43: 17.149704 | L43: 2nd inside
H44: 10.7 | I44: =Path!T33 -> 4.547473509e-13
B45: =J18 -> Panel H | D45: =D38 -> 57.2 | E45: =D28 -> 1.9 | H45: 75.01532738 | I45: =Path!T72 -> -0.0007835347485 | J45: 2 | K45: =D45*H45*$D$49*J45/10^3 -> 16.30533156 | L45: 3rd inside
B46: =J19 -> Panel I | D46: =D38 -> 57.2 | E46: =D28 -> 1.9 | H46: =Panels!K88 -> 77 | J46: 2 | K46: =D46*H46*$D$49*J46/10^3 -> 16.73672 | L46: 3rd inside
B49: Thickness | D49: =D28 -> 1.9 | E49: cm. | J49: Pnl Vol | K49: =SUM(K37:K48) -> 146.543005 | L49: l
B52: Cone Volume | C52: = | D52: 4000 | E52: cm^3
B53: Cone Vol. Adj. (S1) | C53: = | D53: 0 | E53: cm^3
B54: Cone Area Adj. (S1) | C54: = | D54: =D52-D53 -> 4000 | E54: cm^2
H57: Lossy Inductance OFF
B66: Filename | C66: = | D66: I:\Users\Brian.Steele\OneDrive\Hornresp\Import\BOXPLAN.TXT
B68: ID | C68: = | D68: 29.00 | J68: =CONCATENATE(B68,C68,D68) -> ID=29.00
B69: Ang | C69: = | D69: 2.0 x PI | J69: =CONCATENATE(B69,C69,D69) -> Ang=2.0 x PI
B70: Eg | C70: = | D70: 2.83 | J70: Eg=2.83
B71: Rg | C71: = | D71: 0 | J71: Rg=0
B72: Fta | C72: = | D72: 0 | J72: Fta=0
B73: S1 | C73: = | D73: =ROUND(D11,0) -> 1007 | J73: S1=1007
B74: S2 | C74: = | D74: =ROUND(D12,0) -> 1007 | J74: S2=1007
B75: Par | C75: = | D75: =ROUND(D17,1) -> 120.6 | J75: Par=120.6
B76: F12 | C76: = | D76: 0 | J76: F12=0
B77: S2 | C77: = | D77: =D74 -> 1007 | J77: S2=1007
B78: S3 | C78: = | D78: =ROUND(D13,0) -> 2496 | J78: S3=2496
B79: Par | C79: = | D79: =ROUND(D18,1) -> 165.9 | J79: Par=165.9
B80: F23 | C80: = | D80: 0 | J80: F23=0
B81: S3 | C81: = | D81: 0 | J81: S3=0
B82: S4 | C82: = | D82: 0 | J82: S4=0
B83: L34 | C83: = | D83: 0 | J83: L34=0
B84: F34 | C84: = | D84: 0 | J84: F34=0
B85: S5 | C85: = | D85: =D15 -> 2917.2 | J85: S5=2917.2
B86: S6 | C86: = | D86: =D16 -> 2917.2 | J86: S6=2917.2
B87: Par | C87: = | D87: =ROUND(D19,1) -> 78.9 | J87: Par=78.9
B88: F56 | C88: = | D88: 0 | J88: F56=0
B89: Sd | C89: = | D89: 1210 | J89: Sd=1210
B90: Bl | C90: = | D90: 26.4 | J90: Bl=26.4
B91: Cms | C91: = | D91: 8.7e-05 | J91: Cms=0.000087
B92: Rms | C92: = | D92: 8.9 | J92: Rms=8.9
B93: Mmd | C93: = | D93: 243.16 | J93: Mmd=243.16
B94: Le | C94: = | D94: 1.64 | J94: Le=1.64
B95: Re | C95: = | D95: 3.2 | J95: Re=3.2
B96: CH | C96: = | D96: 1 | J96: CH=1
B97: Vrc | C97: = | D97: 0 | J97: Vrc=0
B98: Lrc | C98: = | D98: 0 | J98: Lrc=0
B99: Ap1 | C99: = | D99: 0 | J99: Ap1=0
B100: Lp | C100: = | D100: 0 | J100: Lp=0
B101: Vtc | C101: = | D101: =D52 -> 4000 | J101: Vtc=4000
B102: Atc | C102: = | D102: =D89 -> 1210 | J102: Atc=1210
B103: Pmax | C103: = | D103: 1000 | J103: Pmax=1000
B104: Xmax | C104: = | D104: 12 | J104: Xmax=12
B105: Comment | C105: = | D105: BOXPLAN-Export (7.2 Beta) | J105: Comment=BOXPLAN-Export (7.2 Beta)

Sheet Panels
P3: Exp. | Q3: Cos | R3: Sin | S3: Tan | T3: 1/2 | U3: Cos | V3: Sin | W3: Tan
O4: 1 | P4: ='SPlanar TH'!H34 -> 4.491892069 | Q4: =COS(P4*PI()/180) -> 0.9969284265 | R4: =SIN(P4*PI()/180) -> 0.07831802109 | S4: =TAN(P4*PI()/180) -> 0.07855932182 | T4: =P4/2 -> 2.245946035 | U4: =COS(T4*PI()/180) -> 0.9992318116 | V4: =SIN(T4*PI()/180) -> 0.03918911517 | W4: =TAN(T4*PI()/180) -> 0.03921924294
C5: dX | D5: dY
C6: 0 | D6: 0
C8: x | D8: y | F8: x | G8: y | I8: dx | J8: dy
A9: ='SPlanar TH'!J11 -> Panel A | C9: =C27-'SPlanar TH'!$D$28 -> 141.6 | D9: =D27 -> 91.5 | F9: =IF('SPlanar TH'!$I$11="x",C9,$C$6) -> 141.6 | G9: =IF('SPlanar TH'!$I$11="x",D9,$D$6) -> 91.5
C10: =C9 -> 141.6 | D10: =D29+'SPlanar TH'!$D$28 -> 1.9 | F10: =IF('SPlanar TH'!$I$11="x",C10,$C$6) -> 141.6 | G10: =IF('SPlanar TH'!$I$11="x",D10,$D$6) -> 1.9 | I10: =C9-C10 -> 0 | J10: 89.6 | K10: =(I10^2+J10^2)^0.5 -> 89.6
C11: =C10+'SPlanar TH'!$D$28 -> 143.5 | D11: =D10 -> 1.9 | F11: =IF('SPlanar TH'!$I$11="x",C11,$C$6) -> 143.5 | G11: =IF('SPlanar TH'!$I$11="x",D11,$D$6) -> 1.9 | I11: -1.9 | J11: 0 | K11: =(I11^2+J11^2)^0.5 -> 1.9
C12: =C11 -> 143.5 | D12: =D9 -> 91.5 | F12: =IF('SPlanar TH'!$I$11="x",C12,$C$6) -> 143.5 | G12: =IF('SPlanar TH'!$I$11="x",D12,$D$6) -> 91.5 | I12: 0 | J12: -89.6 | K12: =(I12^2+J12^2)^0.5 -> 89.6
C13: =C9 -> 141.6 | D13: =D9 -> 91.5 | F13: =IF('SPlanar TH'!$I$11="x",C13,$C$6) -> 141.6 | G13: =IF('SPlanar TH'!$I$11="x",D13,$D$6) -> 91.5 | I13: 1.9 | J13: 0 | K13: =(I13^2+J13^2)^0.5 -> 1.9
A15: ='SPlanar TH'!J11 -> Panel A | C15: =C28 -> 0 | D15: =D9 -> 91.5 | F15: =IF('SPlanar TH'!$I$11="x",C15,$C$6) -> 0 | G15: =IF('SPlanar TH'!$I$11="x",D15,$D$6) -> 91.5
C16: =C15 -> 0 | D16: =D35 -> 1.9 | F16: =IF('SPlanar TH'!$I$11="x",C16,$C$6) -> 0 | G16: =IF('SPlanar TH'!$I$11="x",D16,$D$6) -> 1.9 | I16: =C15-C16 -> 0 | J16: 89.6 | K16: =(I16^2+J16^2)^0.5 -> 89.6
C17: =C16+'SPlanar TH'!$D$28 -> 1.9 | D17: =D16 -> 1.9 | F17: =IF('SPlanar TH'!$I$11="x",C17,$C$6) -> 1.9 | G17: =IF('SPlanar TH'!$I$11="x",D17,$D$6) -> 1.9 | I17: -1.9 | J17: 0 | K17: =(I17^2+J17^2)^0.5 -> 1.9
C18: =C17 -> 1.9 | D18: =D15 -> 91.5 | F18: =IF('SPlanar TH'!$I$11="x",C18,$C$6) -> 1.9 | G18: =IF('SPlanar TH'!$I$11="x",D18,$D$6) -> 91.5 | I18: 0 | J18: -89.6 | K18: =(I18^2+J18^2)^0.5 -> 89.6
C19: =C15 -> 0 | D19: =D15 -> 91.5 | F19: =IF('SPlanar TH'!$I$11="x",C19,$C$6) -> 0 | G19: =IF('SPlanar TH'!$I$11="x",D19,$D$6) -> 91.5 | I19: 1.9 | J19: 0 | K19: =(I19^2+J19^2)^0.5 -> 1.9
A21: ='SPlanar TH'!J12 -> Panel B | C21: =(C27+'SPlanar TH'!$D$28)/2 -> 72.7 | D21: =D29+'SPlanar TH'!$D$28 -> 1.9 | F21: =IF('SPlanar TH'!$I$12="x",C21,$C$6) -> 72.7 | G21: =IF('SPlanar TH'!$I$12="x",D21,$D$6) -> 1.9
C22: =C21 -> 72.7 | D22: =D21+'SPlanar TH'!H38 -> 10.7 | F22: =IF('SPlanar TH'!$I$12="x",C22,$C$6) -> 72.7 | G22: =IF('SPlanar TH'!$I$12="x",D22,$D$6) -> 10.7 | I22: =C21-C22 -> 0 | J22: -8.8 | K22: =(I22^2+J22^2)^0.5 -> 8.8
C23: =C22-'SPlanar TH'!$D$28 -> 70.8 | D23: =D22 -> 10.7 | F23: =IF('SPlanar TH'!$I$12="x",C23,$C$6) -> 70.8 | G23: =IF('SPlanar TH'!$I$12="x",D23,$D$6) -> 10.7 | I23: 1.9 | J23: 0 | K23: =(I23^2+J23^2)^0.5 -> 1.9
C24: =C23 -> 70.8 | D24: =D21 -> 1.9 | F24: =IF('SPlanar TH'!$I$12="x",C24,$C$6) -> 70.8 | G24: =IF('SPlanar TH'!$I$12="x",D24,$D$6) -> 1.9 | I24: 0 | J24: 8.8 | K24: =(I24^2+J24^2)^0.5 -> 8.8
C25: =C21 -> 72.7 | D25: =D24 -> 1.9 | F25: =IF('SPlanar TH'!$I$12="x",C25,$C$6) -> 72.7 | G25: =IF('SPlanar TH'!$I$12="x",D25,$D$6) -> 1.9 | I25: -1.9 | J25: 0 | K25: =(I25^2+J25^2)^0.5 -> 1.9
A27: ='SPlanar TH'!J13 -> Panel C | C27: ='SPlanar TH'!D23+$C$6 -> 143.5 | D27: ='SPlanar TH'!D21 -> 91.5 | F27: =IF('SPlanar TH'!$I$13="x",C27,$C$6) -> 143.5 | G27: =IF('SPlanar TH'!$I$13="x",D27,$D$6) -> 91.5
C28: =C6 -> 0 | D28: =D27 -> 91.5 | F28: =IF('SPlanar TH'!$I$13="x",C28,$C$6) -> 0 | G28: =IF('SPlanar TH'!$I$13="x",D28,$D$6) -> 91.5 | I28: =C27-C28 -> 143.5 | J28: 0 | K28: =(I28^2+J28^2)^0.5 -> 143.5
C29: =C28 -> 0 | D29: =D6 -> 0 | F29: =IF('SPlanar TH'!$I$13="x",C29,$C$6) -> 0 | G29: =IF('SPlanar TH'!$I$13="x",D29,$D$6) -> 0 | I29: 0 | J29: 91.5 | K29: =(I29^2+J29^2)^0.5 -> 91.5
C30: =C27 -> 143.5 | D30: =D29 -> 0 | F30: =IF('SPlanar TH'!$I$13="x",C30,$C$6) -> 143.5 | G30: =IF('SPlanar TH'!$I$13="x",D30,$D$6) -> 0 | I30: -143.5 | J30: 0 | K30: =(I30^2+J30^2)^0.5 -> 143.5
C31: =C27 -> 143.5 | D31: =D27 -> 91.5 | F31: =IF('SPlanar TH'!$I$13="x",C31,$C$6) -> 143.5 | G31: =IF('SPlanar TH'!$I$13="x",D31,$D$6) -> 91.5 | I31: 0 | J31: -91.5 | K31: =(I31^2+J31^2)^0.5 -> 91.5
A33: ='SPlanar TH'!J14 -> Panel D | C33: =C28 -> 0 | D33: =D29 -> 0 | F33: =IF('SPlanar TH'!$I$14="x",C33,$C$6) -> 0 | G33: =IF('SPlanar TH'!$I$14="x",D33,$D$6) -> 0
C34: =C27 -> 143.5 | D34: =D33 -> 0 | F34: =IF('SPlanar TH'!$I$14="x",C34,$C$6) -> 143.5 | G34: =IF('SPlanar TH'!$I$14="x",D34,$D$6) -> 0 | I34: =C33-C34 -> -143.5 | J34: 0 | K34: =(I34^2+J34^2)^0.5 -> 143.5
C35: =C34 -> 143.5 | D35: =D29+'SPlanar TH'!$D$28 -> 1.9 | F35: =IF('SPlanar TH'!$I$14="x",C35,$C$6) -> 143.5 | G35: =IF('SPlanar TH'!$I$14="x",D35,$D$6) -> 1.9 | I35: 0 | J35: -1.9 | K35: =(I35^2+J35^2)^0.5 -> 1.9
C36: =C33 -> 0 | D36: =D35 -> 1.9 | F36: =IF('SPlanar TH'!$I$14="x",C36,$C$6) -> 0 | G36: =IF('SPlanar TH'!$I$14="x",D36,$D$6) -> 1.9 | I36: 143.5 | J36: 0 | K36: =(I36^2+J36^2)^0.5 -> 143.5
C37: =C33 -> 0 | D37: =D33 -> 0 | F37: =IF('SPlanar TH'!$I$14="x",C37,$C$6) -> 0 | G37: =IF('SPlanar TH'!$I$14="x",D37,$D$6) -> 0 | I37: 0 | J37: 1.9 | K37: =(I37^2+J37^2)^0.5 -> 1.9
A39: ='SPlanar TH'!J15 -> Panel E | C39: =C83 -> 97.25 | D39: =D27 -> 91.5 | F39: =IF('SPlanar TH'!$I$15="x",C39,$C$6) -> 97.25 | G39: =IF('SPlanar TH'!$I$15="x",D39,$C$6) -> 91.5
C40: =C39+'SPlanar TH'!H41 -> 117.8297546 | D40: =D39 -> 91.5 | F40: =IF('SPlanar TH'!$I$15="x",C40,$C$6) -> 117.8297546 | G40: =IF('SPlanar TH'!$I$15="x",D40,$C$6) -> 91.5 | I40: =C39-C40 -> -20.57975458 | J40: 0 | K40: =(I40^2+J40^2)^0.5 -> 20.57975458
C41: =C40 -> 117.8297546 | D41: =D40-'SPlanar TH'!$D$28 -> 89.6 | F41: =IF('SPlanar TH'!$I$15="x",C41,$C$6) -> 117.8297546 | G41: =IF('SPlanar TH'!$I$15="x",D41,$C$6) -> 89.6 | I41: 0 | J41: 1.9 | K41: =(I41^2+J41^2)^0.5 -> 1.9
C42: =C39 -> 97.25 | D42: =D41 -> 89.6 | F42: =IF('SPlanar TH'!$I$15="x",C42,$C$6) -> 97.25 | G42: =IF('SPlanar TH'!$I$15="x",D42,$C$6) -> 89.6 | I42: 20.57975458 | J42: 0 | K42: =(I42^2+J42^2)^0.5 -> 20.57975458
C43: =C42 -> 97.25 | D43: =D40 -> 91.5 | F43: =IF('SPlanar TH'!$I$15="x",C43,$C$6) -> 97.25 | G43: =IF('SPlanar TH'!$I$15="x",D43,$C$6) -> 91.5 | I43: 0 | J43: -1.9 | K43: =(I43^2+J43^2)^0.5 -> 1.9
A45: =A39 -> Panel E | C45: =C89 -> 46.25 | D45: =D39 -> 91.5 | F45: =IF('SPlanar TH'!$I$15="x",C45,$C$6) -> 46.25 | G45: =IF('SPlanar TH'!$I$15="x",D45,$D$6) -> 91.5
C46: =C45-'SPlanar TH'!H41 -> 25.67024542 | D46: =D45 -> 91.5 | F46: =IF('SPlanar TH'!$I$15="x",C46,$C$6) -> 25.67024542 | G46: =IF('SPlanar TH'!$I$15="x",D46,$D$6) -> 91.5 | I46: =C45-C46 -> 20.57975458 | J46: 0 | K46: =(I46^2+J46^2)^0.5 -> 20.57975458
C47: =C46 -> 25.67024542 | D47: =D46-'SPlanar TH'!$D$28 -> 89.6 | F47: =IF('SPlanar TH'!$I$15="x",C47,$C$6) -> 25.67024542 | G47: =IF('SPlanar TH'!$I$15="x",D47,$D$6) -> 89.6 | I47: 0 | J47: 1.9 | K47: =(I47^2+J47^2)^0.5 -> 1.9
C48: =C45 -> 46.25 | D48: =D47 -> 89.6 | F48: =IF('SPlanar TH'!$I$15="x",C48,$C$6) -> 46.25 | G48: =IF('SPlanar TH'!$I$15="x",D48,$D$6) -> 89.6 | I48: -20.57975458 | J48: 0 | K48: =(I48^2+J48^2)^0.5 -> 20.57975458
C49: =C45 -> 46.25 | D49: =D45 -> 91.5 | F49: =IF('SPlanar TH'!$I$15="x",C49,$C$6) -> 46.25 | G49: =IF('SPlanar TH'!$I$15="x",D49,$D$6) -> 91.5 | I49: 0 | J49: -1.9 | K49: =(I49^2+J49^2)^0.5 -> 1.9
A51: ='SPlanar TH'!J16 -> Panel F (baffle) | C51: =C21+('SPlanar TH'!H42-'SPlanar TH'!$D$28)/2 -> 99.15 | D51: =D22 -> 10.7 | F51: =IF('SPlanar TH'!$I$16="x",C51,$C$6) -> 99.15 | G51: =IF('SPlanar TH'!$I$16="x",D51,$D$6) -> 10.7
C52: =C51 -> 99.15 | D52: =D51+'SPlanar TH'!$D$28 -> 12.6 | F52: =IF('SPlanar TH'!$I$16="x",C52,$C$6) -> 99.15 | G52: =IF('SPlanar TH'!$I$16="x",D52,$D$6) -> 12.6 | I52: =C51-C52 -> 0 | J52: -1.9 | K52: =(I52^2+J52^2)^0.5 -> 1.9
C53: =C52-'SPlanar TH'!H42 -> 44.35 | D53: =D52 -> 12.6 | F53: =IF('SPlanar TH'!$I$16="x",C53,$C$6) -> 44.35 | G53: =IF('SPlanar TH'!$I$16="x",D53,$D$6) -> 12.6 | I53: 54.8 | J53: 0 | K53: =(I53^2+J53^2)^0.5 -> 54.8
C54: =C53 -> 44.35 | D54: =D53-'SPlanar TH'!$D$28 -> 10.7 | F54: =IF('SPlanar TH'!$I$16="x",C54,$C$6) -> 44.35 | G54: =IF('SPlanar TH'!$I$16="x",D54,$D$6) -> 10.7 | I54: 0 | J54: 1.9 | K54: =(I54^2+J54^2)^0.5 -> 1.9
C55: =C51 -> 99.15 | D55: =D51 -> 10.7 | F55: =IF('SPlanar TH'!$I$16="x",C55,$C$6) -> 99.15 | G55: =IF('SPlanar TH'!$I$16="x",D55,$D$6) -> 10.7 | I55: -54.8 | J55: 0 | K55: =(I55^2+J55^2)^0.5 -> 54.8
A57: ='SPlanar TH'!J17 -> Panel G | C57: =C51+'SPlanar TH'!H44 -> 109.85 | D57: =D36 -> 1.9 | F57: =IF('SPlanar TH'!$I$17="x",C57,$C$6) -> 109.85 | G57: =IF('SPlanar TH'!$I$17="x",D57,$D$6) -> 1.9
C58: =C57 -> 109.85 | D58: =D57+'SPlanar TH'!H43 -> 80.8 | F58: =IF('SPlanar TH'!$I$17="x",C58,$C$6) -> 109.85 | G58: =IF('SPlanar TH'!$I$17="x",D58,$D$6) -> 80.8 | I58: =C57-C58 -> 0 | J58: -78.9 | K58: =(I58^2+J58^2)^0.5 -> 78.9
C59: =C58-'SPlanar TH'!$D$28 -> 107.95 | D59: =D58 -> 80.8 | F59: =IF('SPlanar TH'!$I$17="x",C59,$C$6) -> 107.95 | G59: =IF('SPlanar TH'!$I$17="x",D59,$D$6) -> 80.8 | I59: 1.9 | J59: 0 | K59: =(I59^2+J59^2)^0.5 -> 1.9
C60: =C59 -> 107.95 | D60: =D57 -> 1.9 | F60: =IF('SPlanar TH'!$I$17="x",C60,$C$6) -> 107.95 | G60: =IF('SPlanar TH'!$I$17="x",D60,$D$6) -> 1.9 | I60: 0 | J60: 78.9 | K60: =(I60^2+J60^2)^0.5 -> 78.9
C61: =C57 -> 109.85 | D61: =D57 -> 1.9 | F61: =IF('SPlanar TH'!$I$17="x",C61,$C$6) -> 109.85 | G61: =IF('SPlanar TH'!$I$17="x",D61,$D$6) -> 1.9 | I61: -1.9 | J61: 0 | K61: =(I61^2+J61^2)^0.5 -> 1.9
A63: =A57 -> Panel G | C63: =C53-'SPlanar TH'!H44 -> 33.65 | D63: =D60 -> 1.9 | F63: =IF('SPlanar TH'!$I$17="x",C63,$C$6) -> 33.65 | G63: =IF('SPlanar TH'!$I$17="x",D63,$D$6) -> 1.9
C64: =C63 -> 33.65 | D64: =D63+'SPlanar TH'!H43 -> 80.8 | F64: =IF('SPlanar TH'!$I$17="x",C64,$C$6) -> 33.65 | G64: =IF('SPlanar TH'!$I$17="x",D64,$D$6) -> 80.8 | I64: =C63-C64 -> 0 | J64: -78.9 | K64: =(I64^2+J64^2)^0.5 -> 78.9
C65: =C64+'SPlanar TH'!$D$28 -> 35.55 | D65: =D64 -> 80.8 | F65: =IF('SPlanar TH'!$I$17="x",C65,$C$6) -> 35.55 | G65: =IF('SPlanar TH'!$I$17="x",D65,$D$6) -> 80.8 | I65: -1.9 | J65: 0 | K65: =(I65^2+J65^2)^0.5 -> 1.9
C66: =C65 -> 35.55 | D66: =D63 -> 1.9 | F66: =IF('SPlanar TH'!$I$17="x",C66,$C$6) -> 35.55 | G66: =IF('SPlanar TH'!$I$17="x",D66,$D$6) -> 1.9 | I66: 0 | J66: 78.9 | K66: =(I66^2+J66^2)^0.5 -> 78.9
C67: =C63 -> 33.65 | D67: =D63 -> 1.9 | F67: =IF('SPlanar TH'!$I$17="x",C67,$C$6) -> 33.65 | G67: =IF('SPlanar TH'!$I$17="x",D67,$D$6) -> 1.9 | I67: 1.9 | J67: 0 | K67: =(I67^2+J67^2)^0.5 -> 1.9
A69: ='SPlanar TH'!J18 -> Panel H | C69: =C46 -> 25.67024542 | D69: =D46 -> 91.5 | F69: =IF('SPlanar TH'!$I$18="x",C69,$C$6) -> 25.67024542 | G69: =IF('SPlanar TH'!$I$18="x",D69,$D$6) -> 91.5
C70: =C69-'SPlanar TH'!H45*R4 -> 19.79519343 | D70: =D69-'SPlanar TH'!H45*Q4 -> 16.71508771 | F70: =IF('SPlanar TH'!$I$18="x",C70,$C$6) -> 19.79519343 | G70: =IF('SPlanar TH'!$I$18="x",D70,$D$6) -> 16.71508771 | I70: =C69-C70 -> 5.875051991 | J70: 74.78491229 | K70: =(I70^2+J70^2)^0.5 -> 75.01532738
C71: =C70-'SPlanar TH'!E45*Q4 -> 17.90102942 | D71: =D70+'SPlanar TH'!E45*R4 -> 16.86389195 | F71: =IF('SPlanar TH'!$I$18="x",C71,$C$6) -> 17.90102942 | G71: =IF('SPlanar TH'!$I$18="x",D71,$D$6) -> 16.86389195 | I71: 1.89416401 | J71: -0.1488042401 | K71: =(I71^2+J71^2)^0.5 -> 1.9
C72: =C71+'SPlanar TH'!H45*R4 -> 23.77608141 | D72: =D71+'SPlanar TH'!H45*Q4 -> 91.64880424 | F72: =IF('SPlanar TH'!$I$18="x",C72,$C$6) -> 23.77608141 | G72: =IF('SPlanar TH'!$I$18="x",D72,$D$6) -> 91.64880424 | I72: -5.875051991 | J72: -74.78491229 | K72: =(I72^2+J72^2)^0.5 -> 75.01532738
C73: =C69 -> 25.67024542 | D73: =D69 -> 91.5 | F73: =IF('SPlanar TH'!$I$18="x",C73,$C$6) -> 25.67024542 | G73: =IF('SPlanar TH'!$I$18="x",D73,$D$6) -> 91.5 | I73: -1.89416401 | J73: 0.1488042401 | K73: =(I73^2+J73^2)^0.5 -> 1.9
A75: =A69 -> Panel H | C75: =C40 -> 117.8297546 | D75: =D40 -> 91.5 | F75: =IF('SPlanar TH'!$I$18="x",C75,$C$6) -> 117.8297546 | G75: =IF('SPlanar TH'!$I$18="x",D75,$D$6) -> 91.5
C76: =C75+'SPlanar TH'!H45*R4 -> 123.7048066 | D76: =D75-'SPlanar TH'!H45*Q4 -> 16.71508771 | F76: =IF('SPlanar TH'!$I$18="x",C76,$C$6) -> 123.7048066 | G76: =IF('SPlanar TH'!$I$18="x",D76,$D$6) -> 16.71508771 | I76: =C75-C76 -> -5.875051991 | J76: 74.78491229 | K76: =(I76^2+J76^2)^0.5 -> 75.01532738
C77: =C76+'SPlanar TH'!E45*Q4 -> 125.5989706 | D77: =D76+'SPlanar TH'!E45*R4 -> 16.86389195 | F77: =IF('SPlanar TH'!$I$18="x",C77,$C$6) -> 125.5989706 | G77: =IF('SPlanar TH'!$I$18="x",D77,$D$6) -> 16.86389195 | I77: -1.89416401 | J77: -0.1488042401 | K77: =(I77^2+J77^2)^0.5 -> 1.9
C78: =C77-'SPlanar TH'!H45*R4 -> 119.7239186 | D78: =D77+'SPlanar TH'!H45*Q4 -> 91.64880424 | F78: =IF('SPlanar TH'!$I$18="x",C78,$C$6) -> 119.7239186 | G78: =IF('SPlanar TH'!$I$18="x",D78,$D$6) -> 91.64880424 | I78: 5.875051991 | J78: -74.78491229 | K78: =(I78^2+J78^2)^0.5 -> 75.01532738
C79: =C75 -> 117.8297546 | D79: =D75 -> 91.5 | F79: =IF('SPlanar TH'!$I$18="x",C79,$C$6) -> 117.8297546 | G79: =IF('SPlanar TH'!$I$18="x",D79,$D$6) -> 91.5 | I79: 1.89416401 | J79: 0.1488042401 | K79: =(I79^2+J79^2)^0.5 -> 1.9
A81: ='SPlanar TH'!J19 -> Panel I | C81: =C52 -> 99.15 | D81: =D52 -> 12.6 | F81: =IF('SPlanar TH'!$I$19="x",C81,$C$6) -> 99.15 | G81: =IF('SPlanar TH'!$I$19="x",D81,$D$6) -> 12.6
C82: =C81+'SPlanar TH'!$H$35 -> 99.15 | D82: =D48 -> 89.6 | F82: =IF('SPlanar TH'!$I$19="x",C82,$C$6) -> 99.15 | G82: =IF('SPlanar TH'!$I$19="x",D82,$D$6) -> 89.6 | I82: =C81-C82 -> 0 | J82: -77 | K82: =(I82^2+J82^2)^0.5 -> 77
C83: =C82-'SPlanar TH'!$D$28 -> 97.25 | D83: =D82 -> 89.6 | F83: =IF('SPlanar TH'!$I$19="x",C83,$C$6) -> 97.25 | G83: =IF('SPlanar TH'!$I$19="x",D83,$D$6) -> 89.6 | I83: 1.9 | J83: 0 | K83: =(I83^2+J83^2)^0.5 -> 1.9
C84: =C83 -> 97.25 | D84: =D81 -> 12.6 | F84: =IF('SPlanar TH'!$I$19="x",C84,$C$6) -> 97.25 | G84: =IF('SPlanar TH'!$I$19="x",D84,$D$6) -> 12.6 | I84: 0 | J84: 77 | K84: =(I84^2+J84^2)^0.5 -> 77
C85: =C81 -> 99.15 | D85: =D81 -> 12.6 | F85: =IF('SPlanar TH'!$I$19="x",C85,$C$6) -> 99.15 | G85: =IF('SPlanar TH'!$I$19="x",D85,$D$6) -> 12.6 | I85: -1.9 | J85: 0 | K85: =(I85^2+J85^2)^0.5 -> 1.9
A87: =A81 -> Panel I | C87: =C53 -> 44.35 | D87: =D53 -> 12.6 | F87: =IF('SPlanar TH'!$I$19="x",C87,$C$6) -> 44.35 | G87: =IF('SPlanar TH'!$I$19="x",D87,$D$6) -> 12.6
C88: =C87+'SPlanar TH'!$H$35 -> 44.35 | D88: =D48 -> 89.6 | F88: =IF('SPlanar TH'!$I$19="x",C88,$C$6) -> 44.35 | G88: =IF('SPlanar TH'!$I$19="x",D88,$D$6) -> 89.6 | I88: =C87-C88 -> 0 | J88: -77 | K88: =(I88^2+J88^2)^0.5 -> 77
C89: =C88+'SPlanar TH'!$D$28 -> 46.25 | D89: =D88 -> 89.6 | F89: =IF('SPlanar TH'!$I$19="x",C89,$C$6) -> 46.25 | G89: =IF('SPlanar TH'!$I$19="x",D89,$D$6) -> 89.6 | I89: -1.9 | J89: 0 | K89: =(I89^2+J89^2)^0.5 -> 1.9
C90: =C89 -> 46.25 | D90: =D87 -> 12.6 | F90: =IF('SPlanar TH'!$I$19="x",C90,$C$6) -> 46.25 | G90: =IF('SPlanar TH'!$I$19="x",D90,$D$6) -> 12.6 | I90: 0 | J90: 77 | K90: =(I90^2+J90^2)^0.5 -> 77
C91: =C87 -> 44.35 | D91: =D90 -> 12.6 | F91: =IF('SPlanar TH'!$I$19="x",C91,$C$6) -> 44.35 | G91: =IF('SPlanar TH'!$I$19="x",D91,$D$6) -> 12.6 | I91: 1.9 | J91: 0 | K91: =(I91^2+J91^2)^0.5 -> 1.9
A93: Vertical Divider | C93: =(C28+C27)/2 -> 71.75 | D93: =D52 -> 12.6 | F93: =C93 -> 71.75 | G93: =D93 -> 12.6
C94: =C93 -> 71.75 | D94: =D27 -> 91.5 | F94: =C94 -> 71.75 | G94: =D94 -> 91.5
A96: Vertical Axis | C96: =C29 -> 0 | D96: =D29 -> 0 | F96: =C96 -> 0 | G96: =D96 -> 0
C97: =C96 -> 0 | D97: =MAX(C9:D49) -> 143.5 | F97: =C97 -> 0 | G97: =D97 -> 143.5
A99: Horizontal Axis | C99: =C96 -> 0 | D99: =D96 -> 0 | F99: =C99 -> 0 | G99: =D99 -> 0
C100: =D97 -> 143.5 | D100: =C97 -> 0 | F100: =C100 -> 143.5 | G100: =D100 -> 0
C127: x | D127: y | E127: dX | F127: dY | G127: l | H127: Delta
C128: =C52 -> 99.15 | D128: =D52 -> 12.6
C129: =C53 -> 44.35 | D129: =D53 -> 12.6 | E129: =C128-C129 -> 54.8 | F129: =D128-D129 -> 0 | G129: =(E129^2+F129^2)^0.5 -> 54.8 | H129: =F129/E129 -> 0
E133: ='SPlanar TH'!I7 -> x
C134: =C135+('SPlanar TH'!$D$4*COS(ATAN($H$129)))/2+C131 -> 94.75 | D134: =D135+('SPlanar TH'!$D$4*SIN(ATAN($H$129)))/2 -> 12.6 | E134: =$E$133 -> x | F134: =IF(E134="x",C134,"") -> 94.75 | G134: =IF(E134="x",D134,"") -> 12.6
C135: =(C53+C52)/2 -> 71.75 | D135: =D128-(F129*'SPlanar TH'!D17/G129)-D131 -> 12.6 | E135: x | F135: =IF(E135="x",C135,"") -> 71.75 | G135: =IF(E135="x",D135,"") -> 12.6
C136: =C135+'SPlanar TH'!$D$6*SIN(ATAN($H$129)) -> 71.75 | D136: =D135+'SPlanar TH'!$D$6*COS(ATAN($H$129)) -> 37.4 | E136: x | F136: 71.75 | G136: 37.4
C137: =C136+'SPlanar TH'!$D$7*COS(ATAN($H$129))/2 -> 79.25 | D137: =D136+'SPlanar TH'!$D$7*SIN(ATAN($H$129))/2 -> 37.4 | E137: x | F137: 79.25 | G137: 37.4
C138: =C137-'SPlanar TH'!$D$8*SIN(ATAN($H$129)) -> 79.25 | D138: =D137-'SPlanar TH'!$D$8*COS(ATAN($H$129)) -> 27.4 | E138: x | F138: 79.25 | G138: 27.4
C139: =C135+'SPlanar TH'!$D$5*COS(ATAN($H$129))/2 -> 92.85 | D139: =D135+('SPlanar TH'!$D$5)*SIN(ATAN($H$129))/2 -> 12.6 | E139: x | F139: 92.85 | G139: 12.6
C141: =C142-('SPlanar TH'!$D$4*COS(ATAN($H$129)))/2 -> 48.75 | D141: =D142-('SPlanar TH'!$D$4*SIN(ATAN($H$129)))/2 -> 12.6 | E141: =$E$133 -> x | F141: =IF(E141="x",C141,"") -> 48.75 | G141: =IF(E141="x",D141,"") -> 12.6
C142: =C135 -> 71.75 | D142: =D135 -> 12.6 | E142: x | F142: 71.75 | G142: 12.6
C143: =C136 -> 71.75 | D143: =D136 -> 37.4 | E143: x | F143: 71.75 | G143: 37.4
C144: =C143-'SPlanar TH'!$D$7*COS(ATAN($H$129))/2 -> 64.25 | D144: =D143-'SPlanar TH'!$D$7*SIN(ATAN($H$129))/2 -> 37.4 | E144: x | F144: 64.25 | G144: 37.4
C145: =C144-'SPlanar TH'!$D$8*SIN(ATAN($H$129)) -> 64.25 | D145: =D144-'SPlanar TH'!$D$8*COS(ATAN($H$129)) -> 27.4 | E145: x | F145: 64.25 | G145: 27.4
C146: =C142-'SPlanar TH'!$D$5*COS(ATAN($H$129))/2 -> 50.65 | D146: =D142-('SPlanar TH'!$D$5)*SIN(ATAN($H$129))/2 -> 12.6 | E146: x | F146: 50.65 | G146: 12.6
C148: =C145 -> 64.25 | D148: =D145 -> 27.4 | E148: =$E$133 -> x | F148: =IF(E148="x",C148,"") -> 64.25 | G148: =IF(E148="x",D148,"") -> 27.4
C149: =C138 -> 79.25 | D149: =D138 -> 27.4 | E149: =$E$133 -> x | F149: 79.25 | G149: 27.4

Sheet Path
P3: Exp. | Q3: Cos | R3: Sin | S3: Tan | T3: 1/2 | U3: Cos | V3: Sin | W3: Tan
O4: 1 | P4: ='SPlanar TH'!H34 -> 4.491892069 | Q4: =COS(P4*PI()/180) -> 0.9969284265 | R4: =SIN(P4*PI()/180) -> 0.07831802109 | S4: =TAN(P4*PI()/180) -> 0.07855932182 | T4: =P4/2 -> 2.245946035 | U4: =COS(T4*PI()/180) -> 0.9992318116 | V4: =SIN(T4*PI()/180) -> 0.03918911517 | W4: =TAN(T4*PI()/180) -> 0.03921924294
D6: S | E6: L | F6: W | G6: d | H6: y
C7: S1 | D7: =Q18 -> 1006.72 | E7: 0 | F7: =$O$14 -> 57.2 | H7: =D7/F7 -> 17.6
C8: S2 | D8: =Q57 -> 1006.720809 | E8: =N57 -> 120.6491215 | F8: 57.2 | G8: =E8-E7 -> 120.6491215 | H8: 17.60001414 | I8: =ATAN((H8-H7)/(E8-E7))*180/PI() -> 6.713816421e-06
C9: S3 | D9: =Q84 -> 2495.520527 | E9: =N84 -> 286.5623644 | F9: 57.2 | G9: =E9-E8 -> 165.9132429 | H9: 43.62798123 | I9: =(ATAN((H9-H8)/(E9-E8))*180/PI())/2 -> 4.457861249 | J9: =I9-'SPlanar TH'!H34 -> -0.03403081986
C11: S5 | D11: =Q90 -> 2917.2 | E11: =N90 -> 0 | F11: 57.2 | G11: =E11 -> 0 | H11: =D11/F11 -> 51
C12: S6 | D12: =Q93 -> 2917.2 | E12: =N93 -> 78.9 | F12: 57.2 | G12: =E12-E11 -> 78.9 | H12: =D12/F12 -> 51 | I12: =ATAN((H12-H11)/(E12-E11))*180/PI() -> 0
O13: W
O14: ='SPlanar TH'!D32 -> 57.2
A15: Path Calculations | C15: x | D15: y | F15: x | G15: y | I15: d | J15: x | K15: y | L15: dS | M15: d | N15: L | O15: W | P15: p | Q15: S | T15: Error | Y15: Intersection points | Z15: x1 | AA15: y1 | AB15: x2 | AC15: y2 | AD15: a | AE15: b | AF15: x | AG15: y | AH15: l
C16: =Panels!C22 -> 72.7 | D16: =Panels!D22 -> 10.7 | F16: =IF('SPlanar TH'!$I$6="x",C16,0) -> 72.7 | G16: =IF('SPlanar TH'!$I$6="x",D16,0) -> 10.7 | H16: =SUM(C16:C17)/2 -> 72.7 | I16: =SUM(D16:D17)/2 -> 6.3 | J16: =IF('SPlanar TH'!$I$5="x",H16,0) -> 72.7 | K16: =IF('SPlanar TH'!$I$5="x",I16,0) -> 6.3
A17: =A20+1 -> 23 | B17: 1 | C17: =Panels!C21 -> 72.7 | D17: =Panels!D21 -> 1.9 | E17: S1 | F17: =IF('SPlanar TH'!$I$6="x",C17,0) -> 72.7 | G17: =IF('SPlanar TH'!$I$6="x",D17,0) -> 1.9 | J17: =J16 -> 72.7 | K17: =K16 -> 6.3
J18: =J17 -> 72.7 | K18: =K17 -> 6.3 | M18: 0 | N18: =M18 -> 0 | O18: =$O$14 -> 57.2 | P18: 2 | Q18: =((C16-C17)^2+(D16-D17)^2)^0.5*O18*P18 -> 1006.72 | R18: =Q18/2 -> 503.36 | S18: =-R18 -> -503.36 | T18: =(U18-R18)*2 -> 0 | U18: =($D$7)/2 -> 503.36 | V18: =-U18 -> -503.36
C19: =(C16+C22)/2 -> 85.925 | D19: =(D16+D22)/2 -> 10.7 | F19: =IF('SPlanar TH'!$I$6="x",C19,0) -> 85.925 | G19: =IF('SPlanar TH'!$I$6="x",D19,0) -> 10.7 | H19: =SUM(C19:C20)/2 -> 85.925 | I19: =SUM(D19:D20)/2 -> 6.3 | J19: =IF('SPlanar TH'!$I$5="x",H19,0) -> 85.925 | K19: =IF('SPlanar TH'!$I$5="x",I19,0) -> 6.3 | M19: =M18 -> 0 | N19: =N18 -> 0 | Q19: =Q18 -> 1006.72 | R19: 503.36 | S19: -503.36 | T19: =(U19-R19)*2 -> 0 | U19: =($D$7)/2 -> 503.36 | V19: -503.36
A20: 22 | B20: =B17+1 -> 2 | C20: =(C17+C23)/2 -> 85.925 | D20: =(D17+D23)/2 -> 1.9 | F20: =IF('SPlanar TH'!$I$6="x",C20,0) -> 85.925 | G20: =IF('SPlanar TH'!$I$6="x",D20,0) -> 1.9 | J20: =J19 -> 85.925 | K20: =K19 -> 6.3 | M20: =M19 -> 0 | N20: =N19 -> 0 | Q20: =Q19 -> 1006.72 | R20: 503.36 | S20: -503.36 | T20: 0 | U20: 503.36 | V20: -503.36
J21: =J20 -> 85.925 | K21: =K20 -> 6.3 | M21: =((H19-H16)^2+(I19-I16)^2)^0.5 -> 13.225 | N21: =N18+M21 -> 13.225 | O21: =$O$14 -> 57.2 | P21: 2 | Q21: =((C19-C20)^2+(D19-D20)^2)^0.5*O21*P21 -> 1006.72 | R21: 503.36 | S21: -503.36 | T21: 0 | U21: 503.36 | V21: -503.36
C22: =Panels!C51 -> 99.15 | D22: =D16 -> 10.7 | F22: =IF('SPlanar TH'!$I$6="x",C22,0) -> 99.15 | G22: =IF('SPlanar TH'!$I$6="x",D22,0) -> 10.7 | H22: =SUM(C22:C23)/2 -> 99.15 | I22: =SUM(D22:D23)/2 -> 6.3 | J22: =IF('SPlanar TH'!$I$5="x",H22,0) -> 99.15 | K22: =IF('SPlanar TH'!$I$5="x",I22,0) -> 6.3 | M22: =M21 -> 13.225 | N22: =N21 -> 13.225 | Q22: =Q21 -> 1006.72 | R22: 503.36 | S22: -503.36 | T22: 0 | U22: 503.36 | V22: -503.36
A23: 21 | B23: =B20+1 -> 3 | C23: =C22 -> 99.15 | D23: =D17 -> 1.9 | F23: =IF('SPlanar TH'!$I$6="x",C23,0) -> 99.15 | G23: =IF('SPlanar TH'!$I$6="x",D23,0) -> 1.9 | J23: =J22 -> 99.15 | K23: =K22 -> 6.3 | M23: =M22 -> 13.225 | N23: =N22 -> 13.225 | Q23: 1006.72 | R23: 503.36 | S23: -503.36 | T23: 0 | U23: 503.36 | V23: -503.36
J24: =J23 -> 99.15 | K24: =K23 -> 6.3 | M24: =((H22-H19)^2+(I22-I19)^2)^0.5 -> 13.225 | N24: =N21+M24 -> 26.45 | O24: =$O$14 -> 57.2 | P24: 2 | Q24: =((C22-C23)^2+(D22-D23)^2)^0.5*O24*P24 -> 1006.72 | R24: 503.36 | S24: -503.36 | T24: 0 | U24: 503.36 | V24: -503.36
C25: =C22 -> 99.15 | D25: =D22 -> 10.7 | F25: =IF('SPlanar TH'!$I$6="x",C25,0) -> 99.15 | G25: =IF('SPlanar TH'!$I$6="x",D25,0) -> 10.7 | H25: =SUM(C25:C26)/2 -> 101.35 | I25: =SUM(D25:D26)/2 -> 6.3 | J25: =IF('SPlanar TH'!$I$5="x",H25,0) -> 101.35 | K25: =IF('SPlanar TH'!$I$5="x",I25,0) -> 6.3 | M25: =M24 -> 13.225 | N25: =N24 -> 26.45 | Q25: =Q24 -> 1006.72 | R25: 503.36 | S25: -503.36 | T25: 0 | U25: 503.36 | V25: -503.36
A26: 20 | B26: =B23+1 -> 4 | C26: =(C23+Panels!C60)/2 -> 103.55 | D26: =D23 -> 1.9 | F26: =IF('SPlanar TH'!$I$6="x",C26,0) -> 103.55 | G26: =IF('SPlanar TH'!$I$6="x",D26,0) -> 1.9 | J26: =J25 -> 101.35 | K26: =K25 -> 6.3 | M26: =M25 -> 13.225 | N26: =N25 -> 26.45 | Q26: 1006.72 | R26: 503.36 | S26: -503.36 | T26: 0 | U26: 503.36 | V26: -503.36
J27: =J26 -> 101.35 | K27: =K26 -> 6.3 | M27: =((H25-H22)^2+(I25-I22)^2)^0.5 -> 2.2 | N27: =N24+M27 -> 28.65 | O27: =$O$14 -> 57.2 | P27: 2 | Q27: =((C25-C26)^2+(D25-D26)^2)^0.5*O27*P27 -> 1125.547177 | R27: 562.7735886 | S27: -562.7735886 | T27: -118.8271772 | U27: 503.36 | V27: -503.36
C28: =C25 -> 99.15 | D28: =D25 -> 10.7 | F28: =IF('SPlanar TH'!$I$6="x",C28,0) -> 99.15 | G28: =IF('SPlanar TH'!$I$6="x",D28,0) -> 10.7 | H28: =SUM(C28:C29)/2 -> 103.55 | I28: =SUM(D28:D29)/2 -> 8.5 | J28: =IF('SPlanar TH'!$I$5="x",H28,0) -> 103.55 | K28: =IF('SPlanar TH'!$I$5="x",I28,0) -> 8.5 | M28: =M27 -> 2.2 | N28: =N27 -> 28.65 | Q28: =Q27 -> 1125.547177 | R28: 562.7735886 | S28: -562.7735886 | T28: -118.8271772 | U28: 503.36 | V28: -503.36
A29: 19 | B29: =B26+1 -> 5 | C29: =Panels!C60 -> 107.95 | D29: =(D26+D28)/2 -> 6.3 | F29: =IF('SPlanar TH'!$I$6="x",C29,0) -> 107.95 | G29: =IF('SPlanar TH'!$I$6="x",D29,0) -> 6.3 | J29: =J28 -> 103.55 | K29: =K28 -> 8.5 | M29: =M28 -> 2.2 | N29: =N28 -> 28.65 | Q29: 1125.547177 | R29: 562.7735886 | S29: -562.7735886 | T29: -118.8271772 | U29: 503.36 | V29: -503.36
J30: =J29 -> 103.55 | K30: =K29 -> 8.5 | M30: =((H28-H25)^2+(I28-I25)^2)^0.5 -> 3.111269837 | N30: =N27+M30 -> 31.76126984 | O30: =$O$14 -> 57.2 | P30: 2 | Q30: =((C28-C29)^2+(D28-D29)^2)^0.5*O30*P30 -> 1125.547177 | R30: 562.7735886 | S30: -562.7735886 | T30: -118.8271772 | U30: 503.36 | V30: -503.36
C31: =C28 -> 99.15 | D31: =D28 -> 10.7 | F31: =IF('SPlanar TH'!$I$6="x",C31,0) -> 99.15 | G31: =IF('SPlanar TH'!$I$6="x",D31,0) -> 10.7 | H31: =SUM(C31:C32)/2 -> 103.55 | I31: =SUM(D31:D32)/2 -> 10.7 | J31: =IF('SPlanar TH'!$I$5="x",H31,0) -> 103.55 | K31: =IF('SPlanar TH'!$I$5="x",I31,0) -> 10.7 | M31: =M30 -> 3.111269837 | N31: =N30 -> 31.76126984 | Q31: =Q30 -> 1125.547177 | R31: 562.7735886 | S31: -562.7735886 | T31: -118.8271772 | U31: 503.36 | V31: -503.36
A32: 18 | B32: =B29+1 -> 6 | C32: =C29 -> 107.95 | D32: =D31 -> 10.7 | F32: =IF('SPlanar TH'!$I$6="x",C32,0) -> 107.95 | G32: =IF('SPlanar TH'!$I$6="x",D32,0) -> 10.7 | J32: =J31 -> 103.55 | K32: =K31 -> 10.7 | M32: =M31 -> 3.111269837 | N32: =N31 -> 31.76126984 | Q32: 1125.547177 | R32: 562.7735886 | S32: -562.7735886 | T32: -118.8271772 | U32: 503.36 | V32: -503.36
J33: =J32 -> 103.55 | K33: =K32 -> 10.7 | M33: =((H31-H28)^2+(I31-I28)^2)^0.5 -> 2.2 | N33: =N30+M33 -> 33.96126984 | O33: =$O$14 -> 57.2 | P33: 2 | Q33: =((C31-C32)^2+(D31-D32)^2)^0.5*O33*P33 -> 1006.72 | R33: 503.36 | S33: -503.36 | T33: 4.547473509e-13 | U33: 503.36 | V33: -503.36
C34: =C31 -> 99.15 | D34: =Panels!D59 -> 80.8 | F34: =IF('SPlanar TH'!$I$6="x",C34,0) -> 99.15 | G34: =IF('SPlanar TH'!$I$6="x",D34,0) -> 80.8 | H34: =SUM(C34:C35)/2 -> 103.55 | I34: =SUM(D34:D35)/2 -> 80.8 | J34: =IF('SPlanar TH'!$I$5="x",H34,0) -> 103.55 | K34: =IF('SPlanar TH'!$I$5="x",I34,0) -> 80.8 | M34: =M33 -> 2.2 | N34: =N33 -> 33.96126984 | Q34: =Q33 -> 1006.72 | R34: 503.36 | S34: -503.36 | T34: 4.547473509e-13 | U34: 503.36 | V34: -503.36
A35: 17 | B35: =B32+1 -> 7 | C35: =C32 -> 107.95 | D35: =D34 -> 80.8 | F35: =IF('SPlanar TH'!$I$6="x",C35,0) -> 107.95 | G35: =IF('SPlanar TH'!$I$6="x",D35,0) -> 80.8 | J35: =J34 -> 103.55 | K35: =K34 -> 80.8 | M35: =M34 -> 2.2 | N35: =N34 -> 33.96126984 | Q35: 1006.72 | R35: 503.36 | S35: -503.36 | T35: 4.547473509e-13 | U35: 503.36 | V35: -503.36
J36: =J35 -> 103.55 | K36: =K35 -> 80.8 | M36: =((H34-H31)^2+(I34-I31)^2)^0.5 -> 70.1 | N36: =N33+M36 -> 104.0612698 | O36: =$O$14 -> 57.2 | P36: 2 | Q36: =((C34-C35)^2+(D34-D35)^2)^0.5*O36*P36 -> 1006.72 | R36: 503.36 | S36: -503.36 | T36: 4.547473509e-13 | U36: 503.36 | V36: -503.36
C37: =C35 -> 107.95 | D37: =D35 -> 80.8 | F37: =IF('SPlanar TH'!$I$6="x",C37,0) -> 107.95 | G37: =IF('SPlanar TH'!$I$6="x",D37,0) -> 80.8 | H37: =SUM(C37:C38)/2 -> 103.55 | I37: =SUM(D37:D38)/2 -> 83 | J37: =IF('SPlanar TH'!$I$5="x",H37,0) -> 103.55 | K37: =IF('SPlanar TH'!$I$5="x",I37,0) -> 83 | M37: =M36 -> 70.1 | N37: =N36 -> 104.0612698 | Q37: =Q36 -> 1006.72 | R37: 503.36 | S37: -503.36 | T37: 4.547473509e-13 | U37: 503.36 | V37: -503.36
A38: 16 | B38: =B35+1 -> 8 | C38: =C34 -> 99.15 | D38: =(D37+Panels!D82)/2 -> 85.2 | F38: =IF('SPlanar TH'!$I$6="x",C38,0) -> 99.15 | G38: =IF('SPlanar TH'!$I$6="x",D38,0) -> 85.2 | J38: =J37 -> 103.55 | K38: =K37 -> 83 | M38: =M37 -> 70.1 | N38: =N37 -> 104.0612698 | Q38: 1006.72 | R38: 503.36 | S38: -503.36 | T38: 4.547473509e-13 | U38: 503.36 | V38: -503.36
J39: =J38 -> 103.55 | K39: =K38 -> 83 | M39: =((H37-H34)^2+(I37-I34)^2)^0.5 -> 2.2 | N39: =N36+M39 -> 106.2612698 | O39: =$O$14 -> 57.2 | P39: 2 | Q39: =((C37-C38)^2+(D37-D38)^2)^0.5*O39*P39 -> 1125.547177 | R39: 562.7735886 | S39: -562.7735886 | T39: -118.8271772 | U39: 503.36 | V39: -503.36
C40: =C37 -> 107.95 | D40: =D37 -> 80.8 | F40: =IF('SPlanar TH'!$I$6="x",C40,0) -> 107.95 | G40: =IF('SPlanar TH'!$I$6="x",D40,0) -> 80.8 | H40: =SUM(C40:C41)/2 -> 105.75 | I40: =SUM(D40:D41)/2 -> 85.2 | J40: =IF('SPlanar TH'!$I$5="x",H40,0) -> 105.75 | K40: =IF('SPlanar TH'!$I$5="x",I40,0) -> 85.2 | M40: =M39 -> 2.2 | N40: =N39 -> 106.2612698 | Q40: =Q39 -> 1125.547177 | R40: 562.7735886 | S40: -562.7735886 | T40: -118.8271772 | U40: 503.36 | V40: -503.36
A41: 15 | B41: =B38+1 -> 9 | C41: =(C40+C38)/2 -> 103.55 | D41: =Panels!D82 -> 89.6 | F41: =IF('SPlanar TH'!$I$6="x",C41,0) -> 103.55 | G41: =IF('SPlanar TH'!$I$6="x",D41,0) -> 89.6 | J41: =J40 -> 105.75 | K41: =K40 -> 85.2 | M41: =M40 -> 2.2 | N41: =N40 -> 106.2612698 | Q41: 1125.547177 | R41: 562.7735886 | S41: -562.7735886 | T41: -118.8271772 | U41: 503.36 | V41: -503.36
J42: =J41 -> 105.75 | K42: =K41 -> 85.2 | M42: =((H40-H37)^2+(I40-I37)^2)^0.5 -> 3.111269837 | N42: =N39+M42 -> 109.3725397 | O42: =$O$14 -> 57.2 | P42: 2 | Q42: =((C40-C41)^2+(D40-D41)^2)^0.5*O42*P42 -> 1125.547177 | R42: 562.7735886 | S42: -562.7735886 | T42: -118.8271772 | U42: 503.36 | V42: -503.36
C43: =C40 -> 107.95 | D43: =D40 -> 80.8 | F43: =IF('SPlanar TH'!$I$6="x",C43,0) -> 107.95 | G43: =IF('SPlanar TH'!$I$6="x",D43,0) -> 80.8 | H43: =SUM(C43:C44)/2 -> 107.95 | I43: =SUM(D43:D44)/2 -> 85.2 | J43: =IF('SPlanar TH'!$I$5="x",H43,0) -> 107.95 | K43: =IF('SPlanar TH'!$I$5="x",I43,0) -> 85.2 | M43: =M42 -> 3.111269837 | N43: =N42 -> 109.3725397 | Q43: =Q42 -> 1125.547177 | R43: 562.7735886 | S43: -562.7735886 | T43: -118.8271772 | U43: 503.36 | V43: -503.36
A44: 14 | B44: =B41+1 -> 10 | C44: =C43 -> 107.95 | D44: =D41 -> 89.6 | F44: =IF('SPlanar TH'!$I$6="x",C44,0) -> 107.95 | G44: =IF('SPlanar TH'!$I$6="x",D44,0) -> 89.6 | J44: =J43 -> 107.95 | K44: =K43 -> 85.2 | M44: =M43 -> 3.111269837 | N44: =N43 -> 109.3725397 | Q44: 1125.547177 | R44: 562.7735886 | S44: -562.7735886 | T44: -118.8271772 | U44: 503.36 | V44: -503.36
J45: =J44 -> 107.95 | K45: =K44 -> 85.2 | M45: =((H43-H40)^2+(I43-I40)^2)^0.5 -> 2.2 | N45: =N42+M45 -> 111.5725397 | O45: =$O$14 -> 57.2 | P45: 2 | Q45: =((C43-C44)^2+(D43-D44)^2)^0.5*O45*P45 -> 1006.72 | R45: 503.36 | S45: -503.36 | T45: 4.547473509e-13 | U45: 503.36 | V45: -503.36
C46: =Panels!C58 -> 109.85 | D46: =Panels!D58 -> 80.8 | F46: =IF('SPlanar TH'!$I$6="x",C46,0) -> 109.85 | G46: =IF('SPlanar TH'!$I$6="x",D46,0) -> 80.8 | H46: =SUM(C46:C47)/2 -> 109.85 | I46: =SUM(D46:D47)/2 -> 85.2 | J46: =IF('SPlanar TH'!$I$5="x",H46,0) -> 109.85 | K46: =IF('SPlanar TH'!$I$5="x",I46,0) -> 85.2 | M46: =M45 -> 2.2 | N46: =N45 -> 111.5725397 | Q46: =Q45 -> 1006.72 | R46: 503.36 | S46: -503.36 | T46: 4.547473509e-13 | U46: 503.36 | V46: -503.36
A47: 13 | B47: =B44+1 -> 11 | C47: =C46 -> 109.85 | D47: =D44 -> 89.6 | F47: =IF('SPlanar TH'!$I$6="x",C47,0) -> 109.85 | G47: =IF('SPlanar TH'!$I$6="x",D47,0) -> 89.6 | J47: =J46 -> 109.85 | K47: =K46 -> 85.2 | M47: =M46 -> 2.2 | N47: =N46 -> 111.5725397 | Q47: 1006.72 | R47: 503.36 | S47: -503.36 | T47: 4.547473509e-13 | U47: 503.36 | V47: -503.36
J48: =J47 -> 109.85 | K48: =K47 -> 85.2 | M48: =((H46-H43)^2+(I46-I43)^2)^0.5 -> 1.9 | N48: =N45+M48 -> 113.4725397 | O48: =$O$14 -> 57.2 | P48: 2 | Q48: =((C46-C47)^2+(D46-D47)^2)^0.5*O48*P48 -> 1006.72 | R48: 503.36 | S48: -503.36 | T48: 4.547473509e-13 | U48: 503.36 | V48: -503.36
C49: =C46 -> 109.85 | D49: =D46 -> 80.8 | F49: =IF('SPlanar TH'!$I$6="x",C49,0) -> 109.85 | G49: =IF('SPlanar TH'!$I$6="x",D49,0) -> 80.8 | H49: =SUM(C49:C50)/2 -> 111.8821397 | I49: =SUM(D49:D50)/2 -> 85.2 | J49: =IF('SPlanar TH'!$I$5="x",H49,0) -> 111.8821397 | K49: =IF('SPlanar TH'!$I$5="x",I49,0) -> 85.2 | M49: =M48 -> 1.9 | N49: =N48 -> 113.4725397 | Q49: =Q48 -> 1006.72 | R49: 503.36 | S49: -503.36 | T49: 4.547473509e-13 | U49: 503.36 | V49: -503.36
A50: 12 | B50: =B47+1 -> 12 | C50: =(C49+Panels!C41+'SPlanar TH'!E41*R4)/2 -> 113.9142794 | D50: =D47 -> 89.6 | F50: =IF('SPlanar TH'!$I$6="x",C50,0) -> 113.9142794 | G50: =IF('SPlanar TH'!$I$6="x",D50,0) -> 89.6 | J50: =J49 -> 111.8821397 | K50: =K49 -> 85.2 | M50: =M49 -> 1.9 | N50: =N49 -> 113.4725397 | Q50: 1006.72 | R50: =Q50/2 -> 503.36 | S50: =-R50 -> -503.36 | T50: 4.547473509e-13 | U50: 503.36 | V50: =-U50 -> -503.36
J51: =J50 -> 111.8821397 | K51: =K50 -> 85.2 | M51: =((H49-H46)^2+(I49-I46)^2)^0.5 -> 2.032139706 | N51: =N48+M51 -> 115.5046794 | O51: =$O$14 -> 57.2 | P51: 2 | Q51: =((C49-C50)^2+(D49-D50)^2)^0.5*O51*P51 -> 1108.903502 | R51: 554.4517508 | S51: -554.4517508 | T51: -102.1835015 | U51: 503.36 | V51: -503.36
C52: =C49 -> 109.85 | D52: =D49 -> 80.8 | F52: =IF('SPlanar TH'!$I$6="x",C52,0) -> 109.85 | G52: =IF('SPlanar TH'!$I$6="x",D52,0) -> 80.8 | H52: =SUM(C52:C53)/2 -> 114.0804515 | I52: =SUM(D52:D53)/2 -> 83 | J52: =IF('SPlanar TH'!$I$5="x",H52,0) -> 114.0804515 | K52: =IF('SPlanar TH'!$I$5="x",I52,0) -> 83 | M52: =M51 -> 2.032139706 | N52: =N51 -> 115.5046794 | Q52: =Q51 -> 1108.903502 | R52: 554.4517508 | S52: -554.4517508 | T52: -102.1835015 | U52: 503.36 | V52: -503.36
A53: 11 | B53: =B50+1 -> 13 | C53: =(C56+Panels!C41+'SPlanar TH'!E41*R4)/2 -> 118.3109029 | D53: =(D50+D52)/2 -> 85.2 | F53: =IF('SPlanar TH'!$I$6="x",C53,0) -> 118.3109029 | G53: =IF('SPlanar TH'!$I$6="x",D53,0) -> 85.2 | J53: =J52 -> 114.0804515 | K53: =K52 -> 83 | M53: =M52 -> 2.032139706 | N53: =N52 -> 115.5046794 | Q53: 1108.903502 | R53: 554.4517508 | S53: -554.4517508 | T53: -102.1835015 | U53: 503.36 | V53: -503.36
J54: =J53 -> 114.0804515 | K54: =K53 -> 83 | M54: =((H52-H49)^2+(I52-I49)^2)^0.5 -> 3.110076294 | N54: =N51+M54 -> 118.6147557 | O54: =$O$14 -> 57.2 | P54: 2 | Q54: =((C52-C53)^2+(D52-D53)^2)^0.5*O54*P54 -> 1090.987871 | R54: 545.4939355 | S54: -545.4939355 | T54: -84.26787104 | U54: 503.36 | V54: -503.36
C55: =C49 -> 109.85 | D55: =D49 -> 80.8 | E55: S2 | F55: =IF('SPlanar TH'!$I$6="x",C55,0) -> 109.85 | G55: =IF('SPlanar TH'!$I$6="x",D55,0) -> 80.8 | H55: =SUM(C55:C56)/2 -> 114.2466235 | I55: =SUM(D55:D56)/2 -> 80.97243225 | J55: =IF('SPlanar TH'!$I$5="x",H55,0) -> 114.2466235 | K55: =IF('SPlanar TH'!$I$5="x",I55,0) -> 80.97243225 | M55: =M54 -> 3.110076294 | N55: =N54 -> 118.6147557 | Q55: =Q54 -> 1090.987871 | R55: 545.4939355 | S55: -545.4939355 | T55: -84.26787104 | U55: 503.36 | V55: -503.36 | Z55: =Panels!C58 -> 109.85 | AA55: =Panels!D58 -> 80.8 | AB55: =Z55+100*U4 -> 209.7731812 | AC55: =AA55+100*V4 -> 84.71891152 | AD55: =(AC55-AA55)/(AB55-Z55) -> 0.03921924294 | AE55: =(AC55*Z55-AA55*AB55)/(Z55-AB55) -> 76.49176616
A56: 10 | B56: =B53+1 -> 14 | C56: =AF56 -> 118.643247 | D56: =AG56 -> 81.14486449 | F56: =IF('SPlanar TH'!$I$6="x",C56,0) -> 118.643247 | G56: =IF('SPlanar TH'!$I$6="x",D56,0) -> 81.14486449 | J56: =J55 -> 114.2466235 | K56: =K55 -> 80.97243225 | M56: =M55 -> 3.110076294 | N56: =N55 -> 118.6147557 | Q56: 1090.987871 | R56: 545.4939355 | S56: -545.4939355 | T56: -84.26787104 | U56: 503.36 | V56: -503.36 | Z56: =Panels!C75 -> 117.8297546 | AA56: =Panels!D75 -> 91.5 | AB56: =Panels!C76 -> 123.7048066 | AC56: =Panels!D76 -> 16.71508771 | AD56: =IF(AB56<>Z56,(AC56-AA56)/(AB56-Z56),"") -> -12.72923412 | AE56: =IF(AD56<>"",(AC56*Z56-AA56*AB56)/(Z56-AB56),Z56) -> 1591.382533 | AF56: =IF(AD56<>"",(AE55-AE56)/(AD56-AD55),Z56) -> 118.643247 | AG56: =IF(AD56<>"",AF56*AD56+AE56,AF56*AD55+AE55) -> 81.14486449
J57: =J56 -> 114.2466235 | K57: =K56 -> 80.97243225 | M57: =((H55-H52)^2+(I55-I52)^2)^0.5 -> 2.034365785 | N57: =N54+M57 -> 120.6491215 | O57: =$O$14 -> 57.2 | P57: 2 | Q57: =((C55-C56)^2+(D55-D56)^2)^0.5*O57*P57 -> 1006.720809 | R57: 503.3604043 | S57: -503.3604043 | T57: -0.000808661975 | U57: 503.36 | V57: -503.36
C58: =Panels!C76 -> 123.7048066 | D58: =Panels!D76 -> 16.71508771 | F58: =IF('SPlanar TH'!$I$6="x",C58,0) -> 123.7048066 | G58: =IF('SPlanar TH'!$I$6="x",D58,0) -> 16.71508771 | H58: =SUM(C58:C59)/2 -> 116.7774033 | I58: =SUM(D58:D59)/2 -> 16.4434002 | J58: =IF('SPlanar TH'!$I$5="x",H58,0) -> 116.7774033 | K58: =IF('SPlanar TH'!$I$5="x",I58,0) -> 16.4434002 | M58: =M57 -> 2.034365785 | N58: =N57 -> 120.6491215 | Q58: =Q57 -> 1006.720809 | R58: 503.3604043 | S58: -503.3604043 | T58: 0 | U58: =(($D$9-$D$8)*(N58-$E$8)/($E$9-$E$8)+$D$8)/2 -> 503.3604043 | V58: -503.3604043
A59: 9 | B59: =B56+1 -> 15 | C59: =C55 -> 109.85 | D59: =D58-(C58-C59)*W4 -> 16.17171269 | F59: =IF('SPlanar TH'!$I$6="x",C59,0) -> 109.85 | G59: =IF('SPlanar TH'!$I$6="x",D59,0) -> 16.17171269 | J59: =J58 -> 116.7774033 | K59: =K58 -> 16.4434002 | M59: =M58 -> 2.034365785 | N59: =N58 -> 120.6491215 | Q59: 1006.720809 | R59: 503.3604043 | S59: -503.3604043 | T59: 0 | U59: =(($D$9-$D$8)*(N59-$E$8)/($E$9-$E$8)+$D$8)/2 -> 503.3604043 | V59: -503.3604043
J60: =J59 -> 116.7774033 | K60: =K59 -> 16.4434002 | M60: =((H58-H55)^2+(I58-I55)^2)^0.5 -> 64.57864061 | N60: =N57+M60 -> 185.2277621 | O60: =$O$14 -> 57.2 | P60: 2 | Q60: =((C58-C59)^2+(D58-D59)^2)^0.5*O60*P60 -> 1586.208379 | R60: 793.1041895 | S60: -793.1041895 | T60: -5.300989869e-07 | U60: 793.1041892 | V60: -793.1041892
C61: =C58 -> 123.7048066 | D61: =D58 -> 16.71508771 | F61: =IF('SPlanar TH'!$I$6="x",C61,0) -> 123.7048066 | G61: =IF('SPlanar TH'!$I$6="x",D61,0) -> 16.71508771 | H61: =SUM(C61:C62)/2 -> 116.7774033 | I61: =SUM(D61:D62)/2 -> 12.87547203 | J61: =IF('SPlanar TH'!$I$5="x",H61,0) -> 116.7774033 | K61: =IF('SPlanar TH'!$I$5="x",I61,0) -> 12.87547203 | M61: =M60 -> 64.57864061 | N61: =N60 -> 185.2277621 | Q61: =Q60 -> 1586.208379 | R61: 793.1041895 | S61: -793.1041895 | T61: -5.300989869e-07 | U61: 793.1041892 | V61: -793.1041892
A62: 8 | B62: =B59+1 -> 16 | C62: =C59 -> 109.85 | D62: =(D59+D26)/2 -> 9.035856345 | F62: =IF('SPlanar TH'!$I$6="x",C62,0) -> 109.85 | G62: =IF('SPlanar TH'!$I$6="x",D62,0) -> 9.035856345 | J62: =J61 -> 116.7774033 | K62: =K61 -> 12.87547203 | M62: =M61 -> 64.57864061 | N62: =N61 -> 185.2277621 | Q62: 1586.208379 | R62: 793.1041895 | S62: -793.1041895 | T62: -5.300989869e-07 | U62: 793.1041892 | V62: -793.1041892
J63: =J62 -> 116.7774033 | K63: =K62 -> 12.87547203 | M63: =((H61-H58)^2+(I61-I58)^2)^0.5 -> 3.567928172 | N63: =N60+M63 -> 188.7956902 | O63: =$O$14 -> 57.2 | P63: 2 | Q63: =((C61-C62)^2+(D61-D62)^2)^0.5*O63*P63 -> 1812.170603 | R63: 906.0853013 | S63: -906.0853013 | T63: -193.9459104 | U63: 809.1123461 | V63: -809.1123461
C64: =C61 -> 123.7048066 | D64: =D61 -> 16.71508771 | F64: =IF('SPlanar TH'!$I$6="x",C64,0) -> 123.7048066 | G64: =IF('SPlanar TH'!$I$6="x",D64,0) -> 16.71508771 | H64: =SUM(C64:C65)/2 -> 120.3863641 | I64: =SUM(D64:D65)/2 -> 9.307543857 | J64: =IF('SPlanar TH'!$I$5="x",H64,0) -> 120.3863641 | K64: =IF('SPlanar TH'!$I$5="x",I64,0) -> 9.307543857 | M64: =M63 -> 3.567928172 | N64: =N63 -> 188.7956902 | Q64: =Q63 -> 1812.170603 | R64: 906.0853013 | S64: -906.0853013 | T64: -193.9459104 | U64: 809.1123461 | V64: -809.1123461
A65: 7 | B65: =B62+1 -> 17 | C65: =(C62+C68)/2 -> 117.0679215 | D65: =D68 -> 1.9 | F65: =IF('SPlanar TH'!$I$6="x",C65,0) -> 117.0679215 | G65: =IF('SPlanar TH'!$I$6="x",D65,0) -> 1.9 | J65: =J64 -> 120.3863641 | K65: =K64 -> 9.307543857 | M65: =M64 -> 3.567928172 | N65: =N64 -> 188.7956902 | Q65: 1812.170603 | R65: 906.0853013 | S65: -906.0853013 | T65: -193.9459104 | U65: 809.1123461 | V65: -809.1123461
J66: =J65 -> 120.3863641 | K66: =K65 -> 9.307543857 | M66: =((H64-H61)^2+(I64-I61)^2)^0.5 -> 5.074909784 | N66: =N63+M66 -> 193.8706 | O66: =$O$14 -> 57.2 | P66: 2 | Q66: =((C64-C65)^2+(D64-D65)^2)^0.5*O66*P66 -> 1857.142507 | R66: 928.5712536 | S66: -928.5712536 | T66: -193.3788084 | U66: 831.8818494 | V66: -831.8818494
C67: =C64 -> 123.7048066 | D67: =D64 -> 16.71508771 | F67: =IF('SPlanar TH'!$I$6="x",C67,0) -> 123.7048066 | G67: =IF('SPlanar TH'!$I$6="x",D67,0) -> 16.71508771 | H67: =SUM(C67:C68)/2 -> 123.9953248 | I67: =SUM(D67:D68)/2 -> 9.307543857 | J67: =IF('SPlanar TH'!$I$5="x",H67,0) -> 123.9953248 | K67: =IF('SPlanar TH'!$I$5="x",I67,0) -> 9.307543857 | M67: =M66 -> 5.074909784 | N67: =N66 -> 193.8706 | Q67: =Q66 -> 1857.142507 | R67: 928.5712536 | S67: -928.5712536 | T67: -193.3788084 | U67: 831.8818494 | V67: -831.8818494
A68: 6 | B68: =B65+1 -> 18 | C68: =C67+(D67-D68)*W4 -> 124.2858431 | D68: =D26 -> 1.9 | F68: =IF('SPlanar TH'!$I$6="x",C68,0) -> 124.2858431 | G68: =IF('SPlanar TH'!$I$6="x",D68,0) -> 1.9 | J68: =J67 -> 123.9953248 | K68: =K67 -> 9.307543857 | M68: =M67 -> 5.074909784 | N68: =N67 -> 193.8706 | Q68: 1857.142507 | R68: 928.5712536 | S68: -928.5712536 | T68: -193.3788084 | U68: 831.8818494 | V68: -831.8818494
J69: =J68 -> 123.9953248 | K69: =K68 -> 9.307543857 | M69: =((H67-H64)^2+(I67-I64)^2)^0.5 -> 3.608960774 | N69: =N66+M69 -> 197.4795608 | O69: =$O$14 -> 57.2 | P69: 2 | Q69: =((C67-C68)^2+(D67-D68)^2)^0.5*O69*P69 -> 1696.148997 | R69: 848.0744983 | S69: -848.0744983 | T69: -0.0007835191636 | U69: 848.0741065 | V69: -848.0741065
C70: =Panels!C77 -> 125.5989706 | D70: =Panels!D77 -> 16.86389195 | F70: =IF('SPlanar TH'!$I$6="x",C70,0) -> 125.5989706 | G70: =IF('SPlanar TH'!$I$6="x",D70,0) -> 16.86389195 | H70: =SUM(C70:C71)/2 -> 125.8924068 | I70: =SUM(D70:D71)/2 -> 9.381945977 | J70: =IF('SPlanar TH'!$I$5="x",H70,0) -> 125.8924068 | K70: =IF('SPlanar TH'!$I$5="x",I70,0) -> 9.381945977 | M70: =M69 -> 3.608960774 | N70: =N69 -> 197.4795608 | Q70: =Q69 -> 1696.148997 | R70: 848.0744983 | S70: -848.0744983 | T70: -0.0007835191636 | U70: 848.0741065 | V70: -848.0741065
A71: 5 | B71: =B68+1 -> 19 | C71: =C70+(D70-D71)*W4 -> 126.1858431 | D71: =D68 -> 1.9 | F71: =IF('SPlanar TH'!$I$6="x",C71,0) -> 126.1858431 | G71: =IF('SPlanar TH'!$I$6="x",D71,0) -> 1.9 | J71: =J70 -> 125.8924068 | K71: =K70 -> 9.381945977 | M71: =M70 -> 3.608960774 | N71: =N70 -> 197.4795608 | Q71: 1696.148997 | R71: 848.0744983 | S71: -848.0744983 | T71: -0.0007835191636 | U71: 848.0741065 | V71: -848.0741065
J72: =J71 -> 125.8924068 | K72: =K71 -> 9.381945977 | M72: =((H70-H67)^2+(I70-I67)^2)^0.5 -> 1.898540442 | N72: =N69+M72 -> 199.3781012 | O72: =$O$14 -> 57.2 | P72: 2 | Q72: =((C70-C71)^2+(D70-D71)^2)^0.5*O72*P72 -> 1713.185289 | R72: 856.5926444 | S72: -856.5926444 | T72: -0.0007835347485 | U72: 856.5922526 | V72: -856.5922526
C73: =C70 -> 125.5989706 | D73: =D70 -> 16.86389195 | F73: =IF('SPlanar TH'!$I$6="x",C73,0) -> 125.5989706 | G73: =IF('SPlanar TH'!$I$6="x",D73,0) -> 16.86389195 | H73: =SUM(C73:C74)/2 -> 129.7459461 | I73: =SUM(D73:D74)/2 -> 9.381945977 | J73: =IF('SPlanar TH'!$I$5="x",H73,0) -> 129.7459461 | K73: =IF('SPlanar TH'!$I$5="x",I73,0) -> 9.381945977 | M73: =M72 -> 1.898540442 | N73: =N72 -> 199.3781012 | Q73: =Q72 -> 1713.185289 | R73: 856.5926444 | S73: -856.5926444 | T73: -0.0007835347485 | U73: 856.5922526 | V73: -856.5922526
A74: 4 | B74: =B71+1 -> 20 | C74: =(C71+Panels!C10)/2 -> 133.8929215 | D74: =D71 -> 1.9 | F74: =IF('SPlanar TH'!$I$6="x",C74,0) -> 133.8929215 | G74: =IF('SPlanar TH'!$I$6="x",D74,0) -> 1.9 | J74: =J73 -> 129.7459461 | K74: =K73 -> 9.381945977 | M74: =M73 -> 1.898540442 | N74: =N73 -> 199.3781012 | Q74: 1713.185289 | R74: 856.5926444 | S74: -856.5926444 | T74: -0.0007835347485 | U74: 856.5922526 | V74: -856.5922526
J75: =J74 -> 129.7459461 | K75: =K74 -> 9.381945977 | M75: =((H73-H70)^2+(I73-I70)^2)^0.5 -> 3.853539226 | N75: =N72+M75 -> 203.2316405 | O75: =$O$14 -> 57.2 | P75: 2 | Q75: =((C73-C74)^2+(D73-D74)^2)^0.5*O75*P75 -> 1957.235512 | R75: 978.6177559 | S75: -978.6177559 | T75: -209.4718012 | U75: 873.8818553 | V75: -873.8818553
C76: =C73 -> 125.5989706 | D76: =D73 -> 16.86389195 | F76: =IF('SPlanar TH'!$I$6="x",C76,0) -> 125.5989706 | G76: =IF('SPlanar TH'!$I$6="x",D76,0) -> 16.86389195 | H76: =SUM(C76:C77)/2 -> 133.5994853 | I76: =SUM(D76:D77)/2 -> 13.27980603 | J76: =IF('SPlanar TH'!$I$5="x",H76,0) -> 133.5994853 | K76: =IF('SPlanar TH'!$I$5="x",I76,0) -> 13.27980603 | M76: =M75 -> 3.853539226 | N76: =N75 -> 203.2316405 | Q76: =Q75 -> 1957.235512 | R76: 978.6177559 | S76: -978.6177559 | T76: -209.4718012 | U76: 873.8818553 | V76: -873.8818553
A77: =A80+1 -> 3 | B77: =B74+1 -> 21 | C77: =C80 -> 141.6 | D77: =(D74+D80)/2 -> 9.695720107 | F77: =IF('SPlanar TH'!$I$6="x",C77,0) -> 141.6 | G77: =IF('SPlanar TH'!$I$6="x",D77,0) -> 9.695720107 | J77: =J76 -> 133.5994853 | K77: =K76 -> 13.27980603 | M77: =M76 -> 3.853539226 | N77: =N76 -> 203.2316405 | Q77: 1957.235512 | R77: 978.6177559 | S77: -978.6177559 | T77: -209.4718012 | U77: 873.8818553 | V77: -873.8818553
J78: =J77 -> 133.5994853 | K78: =K77 -> 13.27980603 | M78: =((H76-H73)^2+(I76-I73)^2)^0.5 -> 5.48115659 | N78: =N75+M78 -> 208.7127971 | O78: =$O$14 -> 57.2 | P78: 2 | Q78: =((C76-C77)^2+(D76-D77)^2)^0.5*O78*P78 -> 2005.806327 | R78: 1002.903163 | S78: -1002.903163 | T78: -208.8582094 | U78: 898.4740586 | V78: -898.4740586
C79: =C76 -> 125.5989706 | D79: =D76 -> 16.86389195 | F79: =IF('SPlanar TH'!$I$6="x",C79,0) -> 125.5989706 | G79: =IF('SPlanar TH'!$I$6="x",D79,0) -> 16.86389195 | H79: =SUM(C79:C80)/2 -> 133.5994853 | I79: =SUM(D79:D80)/2 -> 17.17766608 | J79: =IF('SPlanar TH'!$I$5="x",H79,0) -> 133.5994853 | K79: =IF('SPlanar TH'!$I$5="x",I79,0) -> 17.17766608 | M79: =M78 -> 5.48115659 | N79: =N78 -> 208.7127971 | Q79: =Q78 -> 2005.806327 | R79: 1002.903163 | S79: -1002.903163 | T79: -208.8582094 | U79: 898.4740586 | V79: -898.4740586
A80: =A83+1 -> 2 | B80: =B77+1 -> 22 | C80: =Panels!C10 -> 141.6 | D80: =D79+(C80-C79)*W4 -> 17.49144021 | F80: =IF('SPlanar TH'!$I$6="x",C80,0) -> 141.6 | G80: =IF('SPlanar TH'!$I$6="x",D80,0) -> 17.49144021 | J80: =J79 -> 133.5994853 | K80: =K79 -> 17.17766608 | M80: =M79 -> 5.48115659 | N80: =N79 -> 208.7127971 | Q80: 2005.806327 | R80: 1002.903163 | S80: -1002.903163 | T80: -208.8582094 | U80: 898.4740586 | V80: -898.4740586
J81: =J80 -> 133.5994853 | K81: =K80 -> 17.17766608 | M81: =((H79-H76)^2+(I79-I76)^2)^0.5 -> 3.897860054 | N81: =N78+M81 -> 212.6106571 | O81: =$O$14 -> 57.2 | P81: 2 | Q81: =((C79-C80)^2+(D79-D80)^2)^0.5*O81*P81 -> 1831.925029 | R81: 915.9625144 | S81: -915.9625144 | T81: 6.070383733e-07 | U81: 915.9625147 | V81: -915.9625147
C82: =Panels!C13 -> 141.6 | D82: =Panels!D9 -> 91.5 | E82: S3 | F82: =IF('SPlanar TH'!$I$6="x",C82,0) -> 141.6 | G82: =IF('SPlanar TH'!$I$6="x",D82,0) -> 91.5 | H82: =SUM(C82:C83)/2 -> 130.7013833 | I82: =SUM(D82:D83)/2 -> 91.0725645 | J82: =IF('SPlanar TH'!$I$5="x",H82,0) -> 130.7013833 | K82: =IF('SPlanar TH'!$I$5="x",I82,0) -> 91.0725645 | M82: =M81 -> 3.897860054 | N82: =N81 -> 212.6106571 | Q82: =Q81 -> 1831.925029 | R82: =Q82/2 -> 915.9625144 | S82: =-R82 -> -915.9625144 | T82: 6.070383733e-07 | U82: 915.9625147 | V82: =-U82 -> -915.9625147 | Z82: =Panels!C9 -> 141.6 | AA82: =Panels!D9 -> 91.5 | AB82: =Z82-100*U4 -> 41.67681884 | AC82: =AA82-100*V4 -> 87.58108848 | AD82: =(AC82-AA82)/(AB82-Z82) -> 0.03921924294 | AE82: =(AC82*Z82-AA82*AB82)/(Z82-AB82) -> 85.9465552
A83: =A86+1 -> 1 | B83: =B80+1 -> 23 | C83: =AF83 -> 119.8027666 | D83: =AG83 -> 90.64512901 | F83: =IF('SPlanar TH'!$I$6="x",C83,0) -> 119.8027666 | G83: =IF('SPlanar TH'!$I$6="x",D83,0) -> 90.64512901 | J83: =J82 -> 130.7013833 | K83: =K82 -> 91.0725645 | M83: =M82 -> 3.897860054 | N83: =N82 -> 212.6106571 | Q83: 1831.925029 | R83: 915.9625144 | S83: -915.9625144 | T83: =(U83-R83)*2 -> 6.070383733e-07 | U83: 915.9625147 | V83: -915.9625147 | Z83: =Panels!C77 -> 125.5989706 | AA83: =Panels!D77 -> 16.86389195 | AB83: =Panels!C78 -> 119.7239186 | AC83: =Panels!D78 -> 91.64880424 | AD83: =IF(AB83<>Z83,(AC83-AA83)/(AB83-Z83),"") -> -12.72923412 | AE83: =IF(AD83<>"",(AC83*Z83-AA83*AB83)/(Z83-AB83),Z83) -> 1615.642594 | AF83: =IF(AD83<>"",(AE82-AE83)/(AD83-AD82),Z83) -> 119.8027666 | AG83: =IF(AD83<>"",AF83*AD83+AE83,AF83*AD82+AE82) -> 90.64512901
J84: =J83 -> 130.7013833 | K84: =K83 -> 91.0725645 | M84: =((H82-H79)^2+(I82-I79)^2)^0.5 -> 73.95170727 | N84: =N81+M84 -> 286.5623644 | O84: =$O$14 -> 57.2 | P84: 2 | Q84: =((C82-C83)^2+(D82-D83)^2)^0.5*O84*P84 -> 2495.520527 | R84: 1247.760263 | S84: -1247.760263 | T84: 0 | U84: 1247.760263 | V84: -1247.760263
C88: =Panels!C90 -> 46.25 | D88: =Panels!D90 -> 12.6 | E88: S4 | F88: =IF('SPlanar TH'!$I$6="x",C88,0) -> 46.25 | G88: =IF('SPlanar TH'!$I$6="x",D88,0) -> 12.6 | H88: =SUM(C88:C89)/2 -> 71.75 | I88: =SUM(D88:D89)/2 -> 12.6 | J88: =IF('SPlanar TH'!$I$5="x",H88,0) -> 71.75 | K88: =IF('SPlanar TH'!$I$5="x",I88,0) -> 12.6 | Q88: =Q87 -> 0
A89: =A92+1 -> 2 | B89: =B86+1 -> 1 | C89: =Panels!C84 -> 97.25 | D89: =Panels!D84 -> 12.6 | F89: =IF('SPlanar TH'!$I$6="x",C89,0) -> 97.25 | G89: =IF('SPlanar TH'!$I$6="x",D89,0) -> 12.6 | J89: =J88 -> 71.75 | K89: =K88 -> 12.6 | Q89: 0
J90: =J89 -> 71.75 | K90: =K89 -> 12.6 | M90: 0 | N90: =N87+M90 -> 0 | O90: =$O$14 -> 57.2 | P90: 1 | Q90: =((C88-C89)^2+(D88-D89)^2)^0.5*O90*P90 -> 2917.2
C91: =Panels!C45 -> 46.25 | D91: =Panels!D45 -> 91.5 | E91: S5 | F91: =IF('SPlanar TH'!$I$6="x",C91,0) -> 46.25 | G91: =IF('SPlanar TH'!$I$6="x",D91,0) -> 91.5 | H91: =SUM(C91:C92)/2 -> 71.75 | I91: =SUM(D91:D92)/2 -> 91.5 | J91: =IF('SPlanar TH'!$I$5="x",H91,0) -> 71.75 | K91: =IF('SPlanar TH'!$I$5="x",I91,0) -> 91.5 | M91: =M90 -> 0 | N91: =N90 -> 0 | Q91: =Q90 -> 2917.2
A92: 1 | B92: =B89+1 -> 2 | C92: =Panels!C39 -> 97.25 | D92: =Panels!D39 -> 91.5 | F92: =IF('SPlanar TH'!$I$6="x",C92,0) -> 97.25 | G92: =IF('SPlanar TH'!$I$6="x",D92,0) -> 91.5 | J92: =J91 -> 71.75 | K92: =K91 -> 91.5 | M92: =M91 -> 0 | N92: =N91 -> 0 | Q92: 2917.2
J93: =J92 -> 71.75 | K93: =K92 -> 91.5 | M93: =((H91-H88)^2+(I91-I88)^2)^0.5 -> 78.9 | N93: =N90+M93 -> 78.9 | O93: =$O$14 -> 57.2 | P93: 1 | Q93: =((C91-C92)^2+(D91-D92)^2)^0.5*O93*P93 -> 2917.2
